bitfinex/quotes_ETHUSD_20220213
["timestamp","ask_amount","ask_price","bid_price","bid_amount"]
[1644731405176,0.46987943,2911.4,2911.2,1.6676]
[1644731405379,0.46987943,2911.4,2911.2,1.9676]
[1644731405681,0.46987943,2911.4,2911.3,0.17209129]
[1644731405882,0.46987943,2911.4,2911.3,0.12209129]
[1644731406280,1.93124942,2911.4,2911.3,0.12209129]
[1644731406485,5.23895123,2911.4,2910.9,0.17209129]
[1644731406684,5.62145056,2911.3,2910.6,1.1271]
[1644731406987,1.46136999,2911.2,2910.6,1.1271]
[1644731407181,3.88041398,2911.1,2910.4,4.17029129]
[1644731407432,3.88041398,2911.1,2910.5,0.85971232]
[1644731407433,1.46136999,2911.0,2910.5,0.85971232]
[1644731407624,3.43441176,2910.9,2910.5,0.85971232]
[1644731407824,1.46136999,2910.8,2910.5,0.85971232]
[1644731408223,3.19338565,2910.7,2910.5,0.85971232]
[1644731408424,1.46136999,2910.6,2910.5,0.85971232]
[1644731408623,1.46136999,2910.6,2910.4,0.17209129]
[1644731408829,0.01004739,2910.9,2910.4,0.17209129]
[1644731409028,1.46174851,2910.8,2910.4,0.17209129]
[1644731409227,4.9760624,2911.3,2910.4,0.17209129]
[1644731409228,0.01004775,2910.6,2910.4,0.17209129]
[1644731409429,0.01004775,2910.6,2909.9,0.01005046]
[1644731409430,0.01004775,2910.6,2909.9,0.18214175]
[1644731409633,1.46180115,2910.5,2909.9,0.18214175]
[1644731409929,1.46180115,2910.5,2910.0,0.17209129]
[1644731410229,1.46180115,2910.5,2910.1,0.99933603]
[1644731410429,1.46180115,2910.4,2910.1,0.99933603]
[1644731410631,0.01004712,2910.6,2910.1,1.17142732]
[1644731410832,1.46183728,2910.5,2910.1,1.17142732]
[1644731411271,3.18829516,2910.4,2910.1,1.17142732]
[1644731411469,0.04240326,2910.9,2910.1,1.17142732]
[1644731411669,0.01004733,2910.6,2910.1,1.17142732]
[1644731411869,1.46186363,2910.5,2910.1,1.17142732]
[1644731412476,3.19911504,2910.4,2910.1,1.17142732]
[1644731412678,3.19911504,2910.4,2909.8,2.2676]
[1644731412679,1.46197232,2910.3,2909.8,0.1716]
[1644731412878,1.46197232,2910.3,2909.9,0.01005012]
[1644731412879,3.93799584,2910.2,2909.9,0.01005012]
[1644731413077,1.46197232,2910.1,2909.9,0.01005012]
[1644731413276,3.19405988,2910.0,2909.9,0.01005012]
[1644731413477,3.59941778,2910.3,2909.9,0.01005012]
[1644731413677,1.4620149,2910.2,2909.9,0.01005012]
[1644731413879,3.32064505,2910.1,2909.7,1.11421101]
[1644731414081,1.4620149,2910.0,2909.9,0.01004969]
[1644731414279,1.46201553,2910.0,2909.9,0.01004969]
[1644731414480,1.46201553,2910.2,2909.9,0.01004969]
[1644731414680,4.73411251,2910.1,2909.9,0.01004969]
[1644731414930,1.46201553,2910.0,2909.7,1.11421101]
[1644731415118,3.57765548,2910.3,2909.7,1.11421101]
[1644731415324,1.46203118,2910.2,2909.9,0.0100495]
[1644731415525,3.46677215,2910.1,2909.9,0.0100495]
[1644731415725,1.46203118,2910.0,2909.9,0.0100495]
[1644731416127,1.46203118,2910.0,2909.2,1.185]
[1644731416327,3.77620028,2910.3,2909.2,1.185]
[1644731416328,3.34138721,2909.9,2909.2,1.185]
[1644731416528,0.1718,2910.2,2909.8,0.01004962]
[1644731416728,1.46209998,2910.1,2909.8,0.01004962]
[1644731417030,3.29903225,2910.0,2909.8,0.01004962]
[1644731417432,0.1718,2910.2,2909.6,1.09691248]
[1644731417628,1.46211172,2910.1,2909.8,0.01004968]
[1644731417828,4.82334264,2910.0,2909.8,0.01004968]
[1644731418028,3.95343066,2910.3,2909.8,0.01004968]
[1644731418229,1.46208718,2910.2,2909.8,0.01004968]
[1644731418429,3.71613815,2910.1,2909.8,0.01004968]
[1644731418670,3.71613815,2910.1,2909.6,1.09691248]
[1644731418873,0.1718,2910.2,2909.9,0.01004955]
[1644731419474,1.46208781,2910.1,2909.9,0.01004955]
[1644731419673,3.43278107,2910.0,2909.9,0.01004955]
[1644731419874,3.43278107,2910.0,2909.6,1.09691248]
[1644731420079,0.1718,2910.2,2909.9,0.01004956]
[1644731420274,1.46210472,2910.1,2909.9,0.01004956]
[1644731420474,3.44354838,2910.0,2909.9,0.01004956]
[1644731420876,0.1718,2910.2,2909.9,0.01004956]
[1644731421175,1.50405777,2910.1,2909.8,0.01004963]
[1644731421376,3.35312702,2910.0,2909.8,0.01004963]
[1644731421574,0.0419581,2910.1,2909.8,0.01004963]
[1644731421776,0.2137581,2910.1,2909.8,0.01004963]
[1644731422178,0.2137581,2910.1,2909.6,1.09691248]
[1644731422432,0.0419581,2910.1,2909.8,0.01004963]
[1644731423425,0.0419581,2910.1,2909.6,1.09691248]
[1644731423625,0.0419581,2910.1,2909.8,0.01004962]
[1644731424627,0.0419581,2910.1,2909.6,1.09691248]
[1644731424826,0.0419581,2910.1,2909.8,0.01004962]
[1644731425826,0.0419581,2910.1,2909.6,1.09691248]
[1644731426027,0.0419581,2910.1,2909.8,0.01004962]
[1644731427074,0.0419581,2910.1,2909.6,1.09691248]
[1644731427273,0.0419581,2910.1,2909.8,0.01004962]
[1644731428274,0.0419581,2910.1,2909.6,1.09691248]
[1644731428474,0.0419581,2910.1,2909.8,0.01004962]
[1644731429477,0.0419581,2910.1,2909.6,1.09691248]
[1644731429678,0.0419581,2910.1,2909.8,0.01004962]
[1644731430119,0.0410824,2910.1,2909.8,0.01004962]
[1644731430628,0.0410824,2910.1,2909.6,1.09691248]
[1644731430824,3.59395719,2910.3,2909.8,0.01004962]
[1644731431025,0.1718,2910.3,2909.8,0.01004962]
[1644731431226,3.49859948,2910.3,2909.8,0.01004962]
[1644731431425,0.04173564,2910.0,2909.8,0.01004962]
[1644731431825,0.04173564,2910.0,2909.6,1.09691248]
[1644731432027,0.04173564,2910.0,2909.8,0.01004969]
[1644731433028,0.04173564,2910.0,2909.6,1.09691248]
[1644731433230,0.04173564,2910.0,2909.8,0.01004969]
[1644731434277,0.04173564,2910.0,2909.6,1.09691248]
[1644731434578,0.04173564,2910.0,2909.8,0.0100497]
[1644731435480,0.04173564,2910.0,2909.6,1.09691248]
[1644731435680,0.04173564,2910.0,2909.8,0.0100497]
[1644731436583,0.04173564,2910.0,2909.0,1.796]
[1644731436782,0.04173564,2910.0,2909.8,0.0100497]
[1644731437926,0.04173564,2910.0,2909.0,2.096]
[1644731437927,0.04173564,2910.0,2909.9,1.08107474]
[1644731450078,0.04173564,2910.0,2909.9,1.07958517]
[1644731451584,1.50357973,2910.0,2909.9,1.07958517]
[1644731457584,1.50357973,2910.0,2909.9,1.37958517]
[1644731457785,1.50357973,2910.0,2909.9,1.07958517]
[1644731463226,1.50357973,2910.0,2909.8,0.00955166]
[1644731463528,1.46184409,2909.9,2909.8,0.00955166]
[1644731464177,1.46184409,2909.9,2909.5,0.7718]
[1644731464377,1.46184409,2909.9,2909.7,0.89426322]
[1644731464582,1.46184409,2909.9,2909.7,0.903815]
[1644731465478,1.46184409,2909.9,2909.7,0.89426322]
[1644731465678,1.46184409,2909.9,2909.7,0.90381506]
[1644731466677,1.46184409,2909.9,2909.7,0.89426322]
[1644731466877,1.46184409,2909.9,2909.7,0.90381507]
[1644731467726,1.46184409,2909.9,2909.7,0.89426322]
[1644731468128,1.46184409,2909.9,2909.7,0.90381507]
[1644731469030,1.46184409,2909.9,2909.7,0.89426322]
[1644731469230,1.46184409,2909.9,2909.7,1.50381507]
[1644731470231,1.46184409,2909.9,2909.7,1.49426322]
[1644731470436,1.46184409,2909.9,2909.7,1.50381508]
[1644731471276,0.02005429,2909.8,2909.7,0.90381508]
[1644731471475,1.48189838,2909.8,2909.7,1.19426322]
[1644731471676,1.48078079,2909.8,2909.7,0.90381508]
[1644731471875,1.48078079,2909.8,2909.7,1.50381508]
[1644731472676,1.48078079,2909.8,2909.7,1.49426322]
[1644731473676,1.48078079,2909.8,2909.7,1.49288586]
[1644731474682,1.48078079,2909.8,2909.7,0.89426322]
[1644731474932,1.48078079,2909.8,2909.7,1.19426322]
[1644731475129,1.48078079,2909.8,2909.7,1.49426322]
[1644731475325,1.48078079,2909.8,2909.7,0.89426322]
[1644731476526,1.48078079,2909.8,2909.7,1.19426322]
[1644731476725,1.48078079,2909.8,2909.7,1.49426322]
[1644731484744,4.98078079,2909.8,2909.0,0.00284596]
[1644731484951,4.98078079,2909.8,2909.6,0.00955192]
[1644731484952,2.28255094,2909.7,2909.6,0.00955192]
[1644731485143,2.28255094,2909.7,2909.1,0.03821495]
[1644731485144,2.35,2909.6,2909.1,0.01911111]
[1644731485344,0.65246878,2909.4,2909.1,0.01911111]
[1644731485552,2.11431287,2909.4,2909.1,0.01911111]
[1644731485745,1.63364409,2909.3,2909.2,0.93777066]
[1644731488288,1.63364409,2909.3,2909.2,0.88777066]
[1644731490553,0.1718,2909.3,2909.2,1.18777066]
[1644731491356,0.18957071,2909.3,2909.2,1.18777066]
[1644731491556,0.18957071,2909.3,2909.2,0.88777066]
[1644731495685,0.18957071,2909.3,2909.2,1.18777066]
[1644731497931,0.18957071,2909.3,2909.2,1.38377066]
[1644731498131,0.18957071,2909.3,2909.2,1.68377066]
[1644731498334,0.18957071,2909.3,2909.2,1.38377066]
[1644731498533,0.18957071,2909.3,2909.2,1.68377066]
[1644731499137,0.18957071,2909.3,2909.2,2.54287066]
[1644731499340,0.18957071,2909.3,2909.2,3.54287066]
[1644731510082,0.18843922,2909.3,2909.2,3.54287066]
[1644731510485,0.18843922,2909.3,2909.2,2.68377066]
[1644731511700,0.01777071,2909.3,2909.2,2.68377066]
[1644731511889,0.01777071,2909.3,2909.2,2.18777066]
[1644731512286,0.01777071,2909.3,2909.2,1.18777066]
[1644731512552,1.47989855,2909.3,2909.2,0.88777066]
[1644731512953,1.4798961,2909.3,2909.2,0.88777066]
[1644731513353,1.4798961,2909.3,2909.2,1.18777066]
[1644731513354,0.01777071,2909.3,2909.2,1.18777066]
[1644731515357,0.01777071,2909.3,2909.2,0.88777066]
[1644731515557,0.01777071,2909.3,2909.2,1.18777066]
[1644731518799,0.01777071,2909.3,2909.2,2.04686066]
[1644731519936,0.01777071,2909.3,2909.2,3.04686066]
[1644731520138,0.01777071,2909.3,2909.2,2.04686066]
[1644731520336,0.01777071,2909.3,2909.2,3.04686066]
[1644731520736,0.01777071,2909.3,2909.2,2.04686066]
[1644731520937,0.01777071,2909.3,2909.2,3.04686066]
[1644731521542,0.01777071,2909.3,2909.2,3.21866066]
[1644731521942,0.01777071,2909.3,2909.2,2.35957066]
[1644731522248,0.01777071,2909.3,2909.2,2.71465066]
[1644731522444,0.01777071,2909.3,2909.2,3.71465066]
[1644731522642,0.01777071,2909.3,2909.2,2.71465066]
[1644731522842,0.01777071,2909.3,2909.2,3.71465066]
[1644731524795,0.01777071,2909.3,2909.2,4.23937352]
[1644731525595,0.1718,2910.3,2909.4,1.71793]
[1644731525795,14.26251172,2910.7,2909.5,4.28334215]
[1644731525796,1.50200489,2910.2,2909.5,4.28334215]
[1644731525995,1.50200489,2910.2,2909.7,0.85884]
[1644731525996,0.04018465,2910.2,2909.7,0.85884]
[1644731526195,0.04018465,2910.2,2909.8,1.6842]
[1644731526395,0.04018465,2910.2,2909.8,8.156]
[1644731526594,0.04018465,2910.2,2909.9,2.61158255]
[1644731526793,0.3799381,2911.0,2910.0,1.496]
[1644731527094,0.0100479,2910.1,2910.0,2.35477]
[1644731527297,0.0100479,2910.1,2910.0,2.95477]
[1644731527940,0.3799381,2911.0,2910.8,1.06646622]
[1644731528141,0.49248497,2910.7,2910.3,0.496]
[1644731528739,0.49248497,2910.7,2910.3,0.796]
[1644731528940,0.49248497,2910.7,2910.6,0.8666807]
[1644731529139,0.49248497,2910.7,2910.6,1.1666807]
[1644731529340,0.49248497,2910.7,2910.6,1.4666807]
[1644731529341,1.95399866,2910.7,2910.6,1.4666807]
[1644731530541,0.49248497,2910.7,2910.6,1.4666807]
[1644731531800,1.95402198,2910.7,2910.6,1.4666807]
[1644731532000,0.49248497,2910.7,2910.6,1.4666807]
[1644731532611,0.49248497,2910.7,2910.6,3.6529807]
[1644731532802,0.00391418,2911.4,2910.6,3.6529807]
[1644731533003,0.01065668,2910.8,2910.6,6.0275807]
[1644731533404,0.01065668,2910.8,2910.7,1.85859]
[1644731533605,0.01065668,2910.8,2910.7,1.496]
[1644731533814,0.01065668,2910.8,2910.7,0.496]
[1644731534009,0.1716,2911.1,2910.7,0.496]
[1644731534223,0.65638296,2911.6,2910.7,0.496]
[1644731534224,0.01065655,2910.9,2910.7,0.496]
[1644731534429,1.46153846,2910.8,2910.7,0.496]
[1644731534809,0.01065655,2910.9,2910.7,1.62757296]
[1644731535037,0.0426198,2911.3,2910.7,1.62757296]
[1644731535238,1.46145463,2911.2,2910.7,1.62757296]
[1644731535436,0.01065648,2910.9,2910.7,1.92757296]
[1644731535840,0.01065648,2910.9,2910.7,1.62757296]
[1644731536339,3.5,2911.5,2910.7,1.62757296]
[1644731536539,0.01065648,2910.9,2910.7,1.62757296]
[1644731537540,3.54700583,2911.6,2910.7,1.62757296]
[1644731537744,1.46147763,2911.5,2910.7,1.62757296]
[1644731537940,0.01065648,2910.9,2910.7,1.62757296]
[1644731538698,3.75790592,2911.6,2910.7,1.62757296]
[1644731538896,0.01065648,2910.9,2910.7,1.62757296]
[1644731539897,0.1716,2911.5,2910.7,1.62757296]
[1644731540097,0.01065648,2910.9,2910.7,1.62757296]
[1644731540698,0.01065648,2910.9,2910.7,2.39917296]
[1644731541100,0.00391418,2911.6,2910.7,2.39917296]
[1644731541303,0.01065648,2910.9,2910.8,0.05322082]
[1644731542098,0.01065648,2910.9,2910.8,0.91186082]
[1644731542298,0.00391418,2911.6,2910.8,1.91186082]
[1644731542535,1.46130409,2911.5,2911.2,1.14281444]
[1644731542733,1.50392336,2911.4,2911.2,1.74281444]
[1644731542938,0.04261927,2911.4,2911.2,1.74281444]
[1644731543633,0.00391418,2911.8,2911.2,1.74281444]
[1644731543838,0.01065581,2911.4,2911.2,1.74281444]
[1644731544037,0.01065581,2911.4,2911.2,1.44281444]
[1644731544236,0.01065581,2911.4,2911.2,1.14281444]
[1644731544641,0.01065581,2911.4,2911.3,0.496]
[1644731544840,0.00391418,2911.8,2911.3,0.496]
[1644731545039,0.01065581,2911.4,2911.3,0.496]
[1644731545444,0.01065581,2911.4,2911.3,0.796]
[1644731545640,0.01065581,2911.4,2911.3,1.9832]
[1644731545940,0.00391418,2912.3,2911.3,3.2832]
[1644731546196,0.01065574,2911.5,2911.3,3.2832]
[1644731546485,0.01065574,2911.5,2911.3,3.48852612]
[1644731547084,3.18698072,2912.4,2911.3,3.48852612]
[1644731547285,1.4610881,2912.3,2911.8,1.00587585]
[1644731547486,0.04077777,2912.0,2911.6,0.496]
[1644731548285,0.00391418,2912.3,2911.6,0.496]
[1644731548486,1.46108074,2912.2,2911.6,0.496]
[1644731548693,0.01019544,2911.9,2911.6,0.496]
[1644731549492,0.00391418,2912.2,2911.6,0.496]
[1644731549692,0.00391418,2912.2,2911.8,1.0035225]
[1644731549932,0.55494495,2911.7,2911.6,0.496]
[1644731550131,0.55494495,2911.7,2911.6,1.51494215]
[1644731551932,0.55494495,2911.7,2911.6,2.11494215]
[1644731557284,0.55494495,2911.7,2911.6,1.51494215]
[1644731557532,0.55494495,2911.7,2911.6,2.11494215]
[1644731557729,0.55494495,2911.7,2911.6,3.11494215]
[1644731557930,0.55494495,2911.7,2911.6,2.11494215]
[1644731558131,0.55494495,2911.7,2911.6,3.11494215]
[1644731558335,0.55494495,2911.7,2911.6,2.11494215]
[1644731558531,0.55494495,2911.7,2911.6,3.11494215]
[1644731562583,0.55494495,2911.7,2911.6,9.31894215]
[1644731567939,0.55494495,2911.7,2911.6,10.17732215]
[1644731570795,0.55394626,2911.7,2911.6,9.31894215]
[1644731576788,0.00391418,2912.1,2911.8,3.3]
[1644731576989,0.04261498,2912.2,2911.9,6.7]
[1644731577186,3.5,2912.8,2912.0,6.204]
[1644731577187,0.00391418,2912.7,2912.0,6.204]
[1644731577386,1.4607001,2912.6,2912.1,1.496]
[1644731577585,0.00391418,2912.5,2912.1,1.496]
[1644731577785,0.00391418,2912.5,2912.1,1.796]
[1644731577987,0.00391418,2912.7,2912.2,0.88177155]
[1644731578187,0.00391418,2912.7,2912.3,0.496]
[1644731578188,1.46069874,2912.6,2912.3,0.496]
[1644731578387,0.00391418,2912.5,2912.3,0.496]
[1644731578796,0.00391418,2912.7,2912.3,0.496]
[1644731578992,0.1716,2913.1,2912.3,0.496]
[1644731578993,1.46071348,2912.6,2912.3,0.496]
[1644731579193,1.46462766,2912.5,2912.3,0.496]
[1644731579393,0.00391418,2913.0,2912.3,0.496]
[1644731579591,1.46072044,2912.9,2912.3,0.496]
[1644731579793,0.01065434,2912.5,2912.2,0.18977156]
[1644731580034,1.46072044,2912.4,2912.3,0.496]
[1644731580435,1.46072044,2912.4,2912.2,0.18977156]
[1644731580935,1.47137491,2912.4,2912.2,0.18977156]
[1644731581134,1.46072044,2912.3,2912.2,0.18977156]
[1644731581439,1.46072044,2912.3,2912.2,0.24837487]
[1644731582035,0.00391418,2912.8,2912.2,0.24837487]
[1644731582235,0.01065454,2912.4,2912.2,0.24837487]
[1644731582436,1.46077397,2912.3,2912.2,0.24837487]
[1644731584793,0.01065454,2912.4,2912.2,0.24837487]
[1644731584992,1.46077397,2912.3,2912.2,0.24837487]
[1644731585893,0.01065454,2912.4,2912.2,0.24837487]
[1644731586094,1.46073376,2912.3,2912.2,0.24837487]
[1644731586293,1.46073376,2912.3,2912.2,0.18977156]
[1644731589445,0.01065454,2912.4,2912.2,0.18977156]
[1644731589646,1.46073376,2912.3,2912.2,0.18977156]
[1644731590648,0.00391418,2912.8,2912.2,0.18977156]
[1644731590649,0.01065454,2912.4,2912.2,0.18977156]
[1644731590848,1.46073376,2912.3,2912.2,0.18977156]
[1644731591483,1.46073376,2912.3,2912.2,1.04796156]
[1644731591884,0.01065454,2912.4,2912.2,1.64796156]
[1644731592083,1.46073376,2912.3,2912.2,1.64796156]
[1644731592584,1.46073376,2912.3,2912.2,2.14396156]
[1644731592987,0.01065454,2912.4,2912.2,2.14396156]
[1644731593188,1.46073376,2912.3,2912.2,2.14396156]
[1644731594088,0.00391418,2912.9,2912.2,2.14396156]
[1644731594089,1.46073376,2912.7,2912.2,2.14396156]
[1644731594293,0.65246878,2913.0,2912.2,2.14396156]
[1644731594294,0.01065454,2912.4,2912.2,2.14396156]
[1644731594691,0.00391418,2912.5,2912.4,2.65]
[1644731594940,0.04261176,2912.8,2912.4,2.65]
[1644731594941,0.04261176,2912.8,2912.4,11.50798]
[1644731595140,1.46048659,2912.7,2912.5,7.91999]
[1644731595340,0.65638296,2913.3,2912.6,0.496]
[1644731595540,1.46048483,2913.2,2912.6,0.496]
[1644731595740,0.00391418,2913.1,2912.6,0.496]
[1644731595941,1.46048483,2913.0,2912.6,0.496]
[1644731596341,1.46439901,2912.9,2912.7,1.71599]
[1644731596540,0.65246878,2913.4,2912.7,1.71599]
[1644731596541,1.46048483,2912.8,2912.7,3.0327644]
[1644731596844,0.00391418,2913.3,2912.7,4.3327644]
[1644731596845,1.46048483,2913.2,2912.7,4.3327644]
[1644731597040,0.65246878,2913.4,2912.8,0.496]
[1644731597041,1.46439901,2913.1,2912.8,0.496]
[1644731597239,1.46048483,2913.0,2912.8,0.496]
[1644731597440,1.46048483,2912.9,2912.8,0.496]
[1644731598040,1.46048483,2913.3,2912.8,0.496]
[1644731598241,0.00391418,2913.2,2912.8,1.496]
[1644731598442,1.46048483,2913.1,2912.8,0.496]
[1644731598689,1.46439901,2913.3,2912.8,1.496]
[1644731598889,0.00391418,2913.0,2912.8,0.496]
[1644731599089,1.46048483,2912.9,2912.8,1.496]
[1644731599289,1.46048483,2912.9,2912.8,1.096]
[1644731599495,1.46048483,2913.0,2912.8,2.096]
[1644731599691,1.46048483,2912.9,2912.8,1.496]
[1644731599894,0.00391418,2913.3,2912.7,0.95488429]
[1644731599895,1.46048483,2913.0,2912.7,0.95488429]
[1644731600090,0.65638296,2913.3,2912.7,1.25488429]
[1644731600091,1.46439901,2912.9,2912.7,1.25488429]
[1644731600291,0.65246878,2913.3,2912.7,1.25488429]
[1644731600292,1.46048483,2912.8,2912.7,1.55488429]
[1644731600490,1.46048483,2912.9,2912.7,1.55488429]
[1644731600890,1.46048483,2912.9,2912.8,0.05869497]
[1644731602738,0.01065373,2913.0,2912.8,0.05869497]
[1644731602937,1.46048483,2912.9,2912.8,0.05869497]
[1644731603843,0.01065373,2913.0,2912.8,0.05869497]
[1644731604044,1.46048483,2912.9,2912.8,0.05869497]
[1644731604443,1.46048483,2912.9,2912.8,0.55469497]
[1644731605046,0.00391418,2913.3,2912.8,0.55469497]
[1644731605047,0.01065373,2913.0,2912.8,0.55469497]
[1644731605246,1.46048483,2912.9,2912.8,0.55469497]
[1644731606295,1.46044016,2912.9,2912.8,0.55469497]
[1644731606495,1.46044016,2912.9,2912.8,0.496]
[1644731607309,1.46044016,2912.9,2912.8,1.35399]
[1644731607503,0.00391418,2913.4,2912.8,1.35399]
[1644731607504,0.01065373,2913.0,2912.8,1.35399]
[1644731607698,1.46044016,2912.9,2912.8,2.35399]
[1644731608101,0.01065373,2913.0,2912.8,2.35399]
[1644731608498,0.04260853,2913.4,2912.8,2.35399]
[1644731608499,0.65638296,2913.7,2912.8,2.35399]
[1644731608698,0.01065373,2913.0,2912.8,2.35399]
[1644731609805,0.01065366,2913.0,2912.8,2.35399]
[1644731610040,0.01065366,2913.0,2912.9,4.26076452]
[1644731610239,0.01065366,2913.0,2912.9,1.95385]
[1644731610540,0.01065366,2913.0,2912.9,2.95385]
[1644731610741,0.00391418,2913.7,2913.0,3.1]
[1644731610942,0.00391418,2913.7,2913.2,1.71556]
[1644731611144,0.04260799,2913.5,2913.3,0.496]
[1644731611343,0.04260799,2913.5,2913.3,1.796]
[1644731611945,0.00391418,2914.0,2913.3,1.796]
[1644731612145,0.00391418,2914.0,2913.4,1.00697559]
[1644731612348,0.00391418,2914.0,2913.5,0.496]
[1644731612545,0.00391418,2914.0,2913.5,0.796]
[1644731612746,0.00391418,2914.0,2913.6,0.85781]
[1644731612944,0.00391418,2914.0,2913.7,0.496]
[1644731613146,0.00391418,2914.0,2913.7,2.21139]
[1644731613346,0.00391418,2914.0,2913.7,2.51139]
[1644731613545,0.65638296,2914.3,2913.7,2.81139]
[1644731613791,0.65638296,2914.3,2913.8,1.0]
[1644731613994,0.65638296,2914.3,2913.9,1.55682605]
[1644731614191,0.65638296,2914.3,2914.0,0.85769]
[1644731614391,0.65246878,2914.3,2914.1,0.496]
[1644731614592,0.01065205,2914.2,2914.1,0.496]
[1644731614793,0.01456623,2914.2,2914.1,0.496]
[1644731615394,0.01065205,2914.2,2914.1,0.496]
[1644731615595,0.00391418,2914.3,2914.1,0.496]
[1644731615894,0.01456616,2914.3,2914.1,0.496]
[1644731616095,0.01065198,2914.3,2914.1,0.496]
[1644731616294,0.01456616,2914.3,2914.1,0.496]
[1644731616898,0.00391418,2914.3,2914.1,0.496]
[1644731617096,0.01065191,2914.3,2914.1,0.496]
[1644731617298,0.01456609,2914.3,2914.1,0.496]
[1644731617542,0.01065191,2914.3,2914.1,0.496]
[1644731617937,0.00391418,2914.6,2914.1,0.496]
[1644731618139,0.00391418,2914.6,2914.4,0.94721842]
[1644731618344,0.69339527,2914.6,2914.4,0.94721842]
[1644731618947,0.04092649,2914.6,2914.4,0.94721842]
[1644731619550,0.051578,2914.6,2914.4,0.94721842]
[1644731619851,0.1141026,2913.8,2913.7,1.35910378]
[1644731620248,0.1141026,2913.8,2913.7,1.65910378]
[1644731620448,0.1141026,2913.8,2913.7,1.83119507]
[1644731620851,0.1141026,2913.8,2913.7,2.32719507]
[1644731621050,0.1141026,2913.8,2913.7,2.26809129]
[1644731621504,0.1141026,2913.8,2913.7,3.35191311]
[1644731621903,0.1141026,2913.8,2913.7,3.52351311]
[1644731625438,0.1141026,2913.8,2913.7,3.35191311]
[1644731626245,0.01065252,2913.9,2913.8,1.71533]
[1644731626441,0.04092649,2914.6,2913.8,2.21133]
[1644731626643,0.01065252,2913.9,2913.8,2.68342129]
[1644731626842,0.01065252,2913.9,2913.8,3.68342129]
[1644731627642,0.04092649,2914.6,2913.8,3.68342129]
[1644731627849,0.04092649,2914.6,2914.0,0.85766]
[1644731628044,1.45991087,2914.5,2914.1,0.496]
[1644731628245,0.00393451,2914.4,2914.1,0.496]
[1644731628444,1.45991087,2914.3,2914.2,0.17209129]
[1644731628687,1.45991087,2914.3,2914.2,1.68609316]
[1644731629092,0.04092649,2914.6,2914.2,1.68609316]
[1644731629093,1.45991087,2914.5,2914.2,1.68609316]
[1644731629289,0.00393451,2914.4,2914.2,1.68609316]
[1644731629494,1.28781958,2914.3,2914.2,1.51400187]
[1644731629789,1.11572829,2914.3,2914.2,1.51400187]
[1644731629991,0.04092649,2914.6,2914.2,1.51400187]
[1644731630189,0.01065184,2914.4,2914.2,1.68609316]
[1644731631194,0.044861,2914.6,2914.2,1.68609316]
[1644731631393,0.01065178,2914.4,2914.2,1.68609316]
[1644731632440,0.04092649,2914.6,2914.2,1.68609316]
[1644731632640,0.01065178,2914.4,2914.2,1.68609316]
[1644731633642,0.04092649,2914.6,2914.2,1.68609316]
[1644731633845,0.01065178,2914.4,2914.2,1.68609316]
[1644731634845,0.04092649,2914.6,2914.2,1.68609316]
[1644731635047,0.01065178,2914.4,2914.2,1.68609316]
[1644731635944,0.04092649,2914.6,2914.2,1.68609316]
[1644731636189,0.01065178,2914.4,2914.2,1.68609316]
[1644731636689,0.01065178,2914.4,2914.2,1.7237836]
[1644731637294,0.04092649,2914.6,2914.2,1.7237836]
[1644731637495,0.01065178,2914.4,2914.2,1.7237836]
[1644731638497,0.04092649,2914.6,2914.2,1.7237836]
[1644731638695,0.01065178,2914.4,2914.2,1.7237836]
[1644731639698,0.04092649,2914.6,2914.3,1.71502]
[1644731639942,0.01065178,2914.4,2914.3,2.71502]
[1644731640143,0.01065178,2914.4,2914.3,3.21102]
[1644731640337,0.01065178,2914.4,2914.3,3.38311129]
[1644731640743,0.04092649,2914.6,2914.3,3.38311129]
[1644731641140,0.01065171,2914.5,2914.3,3.38311129]
[1644731641941,0.04092649,2914.6,2914.3,3.38311129]
[1644731642340,0.01065164,2914.5,2914.3,3.38311129]
[1644731643246,0.04092649,2914.6,2914.3,3.38311129]
[1644731643441,0.01065164,2914.5,2914.3,3.38311129]
[1644731644499,0.04092649,2914.6,2914.3,3.38311129]
[1644731644698,0.01065164,2914.5,2914.3,3.38311129]
[1644731645598,0.04092649,2914.6,2914.3,3.38311129]
[1644731645802,0.01065164,2914.5,2914.3,3.38311129]
[1644731646799,0.04092649,2914.6,2914.3,3.38311129]
[1644731647002,0.01065164,2914.5,2914.3,1.66809129]
[1644731647203,0.01065164,2914.5,2914.2,1.22719231]
[1644731647454,0.01065164,2914.5,2914.2,1.05569231]
[1644731648044,0.04092649,2914.6,2914.2,1.05569231]
[1644731648245,0.01065171,2914.5,2914.2,1.05569231]
[1644731649048,0.01065171,2914.5,2914.2,1.2277836]
[1644731649247,0.04149491,2914.7,2914.2,1.2277836]
[1644731649448,0.01458622,2914.5,2914.2,1.2277836]
[1644731649647,0.01065171,2914.5,2914.2,1.2277836]
[1644731650447,0.04092649,2914.6,2914.2,1.2277836]
[1644731650647,1.47037296,2914.5,2914.2,1.2277836]
[1644731650848,0.00393451,2914.4,2914.2,1.2277836]
[1644731651051,0.05100977,2914.5,2914.2,1.2277836]
[1644731651293,1.45973431,2914.4,2914.2,1.2277836]
[1644731651793,1.47038609,2914.4,2914.2,1.2277836]
[1644731651994,1.45972771,2914.3,2914.2,1.2277836]
[1644731652595,1.45836629,2914.3,2914.2,1.2277836]
[1644731652794,0.04035806,2914.5,2914.2,0.20978173]
[1644731652993,0.01065184,2914.4,2914.2,0.20978173]
[1644731653800,0.01065184,2914.4,2914.2,1.28680997]
[1644731654001,0.04035806,2914.5,2914.2,1.28680997]
[1644731654202,0.01065178,2914.4,2914.2,1.28680997]
[1644731655241,0.04035806,2914.5,2914.2,1.28680997]
[1644731655642,0.01065178,2914.4,2914.2,1.28680997]
[1644731656246,0.01065178,2914.4,2914.2,1.3056451]
[1644731656445,0.04035806,2914.5,2914.2,1.3056451]
[1644731656844,0.01065178,2914.4,2914.2,1.3056451]
[1644731657644,0.04035806,2914.5,2914.2,1.3056451]
[1644731657944,0.01065178,2914.4,2914.2,1.3056451]
[1644731658800,0.04035806,2914.5,2914.2,1.3056451]
[1644731658997,0.01065178,2914.4,2914.2,1.3056451]
[1644731659997,0.04035806,2914.5,2914.2,1.3056451]
[1644731660196,0.01061817,2914.4,2914.2,1.3056451]
[1644731661301,0.04035806,2914.5,2914.2,1.3056451]
[1644731661501,0.04035806,2914.5,2914.3,0.8576]
[1644731661502,0.01061817,2914.4,2914.3,0.8576]
[1644731662443,0.04035806,2914.5,2914.3,0.8576]
[1644731662643,0.05097616,2914.5,2914.3,0.8576]
[1644731663444,0.05097616,2914.5,2914.3,1.3036]
[1644731663645,0.04035806,2914.5,2914.3,1.3036]
[1644731663857,0.04035806,2914.5,2914.3,2.3036]
[1644731663858,0.05035567,2914.5,2914.3,2.3036]